fUST/lending_fUST_20240524
["ID","MTS","AMOUNT","RATE_DAILY","PERIOD"]
[327838011,1716537033703,-705.16190719,0.00024655,2]
[327838012,1716537033712,-155.44961764,0.00024655,2]
[327838013,1716537033721,-233.18026408,0.00024655,2]
[327838014,1716537033731,-189.49453315,0.00024655,4]
[327838015,1716537033742,-174.65826339,0.00024655,2]
[327838016,1716537033751,-775.61622968,0.00024655,2]
[327838017,1716537033762,-308.63024109,0.00024655,2]
[327838018,1716537033771,-228.6001014,0.00024655,2]
[327838019,1716537033780,-155.45277014,0.00024655,2]
[327838020,1716537033790,-692.64952364,0.00024655,2]
[327838021,1716537033799,-1182.83455597,0.00024655,2]
[327838022,1716537033808,-2688.79775676,0.00024655,2]
[327838023,1716537033818,-346.72092502,0.00024655,2]
[327838024,1716537033827,-213.47196927,0.00024656,2]
[327838025,1716537033836,-357.84933238,0.00024656,2]
[327838026,1716537033845,-461.62235246,0.00024656,2]
[327838027,1716537033854,-500.0,0.00024656,2]
[327838028,1716537033863,-444.72992032,0.00024656,2]
[327838029,1716537033873,-500.24208294,0.00024656,2]
[327838030,1716537033882,-500.0,0.00024656,2]
[327838031,1716537033891,-500.0,0.00024656,2]
[327838032,1716537033900,-490.59212769,0.00024656,2]
[327838033,1716537033910,-500.0,0.00024656,2]
[327838034,1716537033919,-500.0,0.00024656,2]
[327838035,1716537033929,-500.0,0.00024656,2]
[327838036,1716537033938,-500.0,0.00024656,2]
[327838037,1716537033947,-500.0,0.00024656,2]
[327838038,1716537033956,-46.32452405,0.00024656,2]
[327838075,1716537038241,-155.39696842,0.00024655,2]
[327838077,1716537038251,-453.67547595,0.00024656,2]
[327838079,1716537038261,-500.0,0.00024656,2]
[327838081,1716537038271,-500.0,0.00024656,2]
[327838084,1716537038281,-550.0,0.00024656,2]
[327838086,1716537038291,-279.70455446,0.00024656,2]
[327838087,1716537038300,-500.0,0.00024656,2]
[327838090,1716537038310,-200.0,0.00024656,2]
[327838091,1716537038319,-15766.56640551,0.00024657,11]
[327838094,1716537038329,-500.0,0.00024657,2]
[327838096,1716537038338,-500.0,0.00024657,2]
[327838097,1716537038347,-359.8,0.00024657,2]
[327838099,1716537038357,-500.0,0.00024657,2]
[327838101,1716537038366,-500.0,0.00024657,2]
[327838103,1716537038376,-500.0,0.00024657,2]
[327838105,1716537038385,-500.0,0.00024657,2]
[327838107,1716537038394,-500.0,0.00024657,2]
[327838109,1716537038403,-500.0,0.00024657,2]
[327838111,1716537038412,-500.0,0.00024657,2]
[327838113,1716537038421,-500.0,0.00024657,2]
[327838115,1716537038430,-500.0,0.00024657,2]
[327838117,1716537038440,-500.0,0.00024657,2]
[327838119,1716537038449,-500.0,0.00024657,2]
[327838122,1716537038458,-500.0,0.00024657,2]
[327838124,1716537038469,-563.84555636,0.00024657,2]
[327838126,1716537038479,-500.0,0.00024657,2]
[327838127,1716537038488,-500.0,0.00024657,2]
[327838129,1716537038497,-1000.0,0.00024657,2]
[327838131,1716537038507,-532.05,0.00024657,2]
[327838134,1716537038516,-472.40982528,0.00024657,2]
[327838135,1716537038526,-500.0,0.00024657,2]
[327838138,1716537038536,-520.18300499,0.00024657,2]
[327838140,1716537038545,-511.27804788,0.00024657,2]
[327838142,1716537038554,-500.0,0.00024657,2]
[327838143,1716537038564,-970.32,0.00024657,2]
[327838146,1716537038573,-642.3,0.00024657,2]
[327838148,1716537038583,-285.59964648,0.00024657,2]
[327838149,1716537038592,-500.0,0.00024657,2]
[327838151,1716537038601,-500.0,0.00024657,2]
[327838153,1716537038611,-500.0,0.00024657,2]
[327838155,1716537038620,-500.0,0.00024657,2]
[327838157,1716537038629,-500.0,0.00024657,2]
[327838160,1716537038639,-1949.67,0.00024657,2]
[327838162,1716537038649,-2336.37,0.00024657,2]
[327838164,1716537038658,-502.36,0.00024657,2]
[327838166,1716537038672,-500.0,0.00024657,2]
[327838168,1716537038681,-621.97103725,0.00024657,2]
[327838170,1716537038690,-593.97868041,0.00024657,2]
[327838172,1716537038699,-2838.29,0.00024657,2]
[327838174,1716537038710,-500.0,0.00024657,2]
[327838176,1716537038720,-504.65651107,0.00024657,2]
[327838178,1716537038729,-3196.59,0.00024657,2]
[327838180,1716537038739,-500.0,0.00024657,2]
[327838181,1716537038748,-503.6417735,0.00024657,2]
[327838182,1716537038758,-433.13390746,0.00024657,2]
[327838183,1716537038768,-500.0,0.00024657,2]
[327838184,1716537038778,-1209.28,0.00024657,2]
[327838185,1716537038788,-500.0,0.00024657,2]
[327838186,1716537038798,-500.0,0.00024657,2]
[327838187,1716537038807,-500.0,0.00024657,2]
[327838189,1716537038816,-1842.90047146,0.00024657,2]
[327838191,1716537038825,-500.0,0.00024657,2]
[327838193,1716537038835,-500.0,0.00024657,2]
[327838194,1716537038844,-500.0,0.00024657,2]
[327838196,1716537038854,-500.0,0.00024657,2]
[327838198,1716537038863,-553.0644332,0.00024657,2]
[327838199,1716537038873,-1361.77,0.00024657,2]
[327838200,1716537038882,-979.13,0.00024657,2]
[327838201,1716537038892,-573.21,0.00024657,2]
[327838202,1716537038901,-500.0,0.00024657,2]
[327838203,1716537038910,-1847.85,0.00024657,2]
[327838204,1716537038919,-500.0,0.00024657,2]
[327838205,1716537038928,-998.69,0.00024657,2]
[327838206,1716537038938,-500.0,0.00024657,2]
[327838207,1716537038947,-512.47480496,0.00024657,2]
[327838208,1716537038956,-500.0,0.00024657,2]
[327838209,1716537038965,-761.11,0.00024657,2]
[327838210,1716537038975,-628.39598113,0.00024657,2]
[327838211,1716537038985,-500.0,0.00024657,2]
[327838212,1716537038994,-153.11676968,0.00024657,2]
[327838213,1716537039003,-500.0,0.00024657,2]
[327838214,1716537039012,-500.0,0.00024657,2]
[327838215,1716537039022,-507.27,0.00024657,2]
[327838216,1716537039031,-946.65,0.00024657,2]
[327838217,1716537039040,-1240.39,0.00024657,2]
[327838218,1716537039050,-1335.8,0.00024657,2]
[327838219,1716537039060,-2172.85,0.00024657,2]
[327838220,1716537039069,-500.0,0.00024657,2]
[327838221,1716537039079,-500.0,0.00024657,2]
[327838222,1716537039089,-500.0,0.00024657,2]
[327838223,1716537039098,-2776.03,0.00024657,2]
[327838224,1716537039108,-507.24768904,0.00024657,2]
[327838225,1716537039118,-500.0,0.00024657,2]
[327838226,1716537039127,-500.0,0.00024657,2]
[327838227,1716537039136,-500.0,0.00024657,2]
[327838228,1716537039146,-566.1179914,0.00024657,2]
[327838229,1716537039155,-400.54089825,0.00024657,2]
[327838230,1716537039169,-500.0,0.00024657,2]
[327838231,1716537039179,-500.0,0.00024657,2]
[327838232,1716537039189,-1103.25,0.00024657,2]
[327838233,1716537039199,-1775.81,0.00024657,2]
[327838234,1716537039208,-638.51,0.00024657,2]
[327838235,1716537039218,-500.0,0.00024657,2]
[327838236,1716537039228,-600.07,0.00024657,2]
[327838237,1716537039237,-500.0,0.00024657,2]
[327838238,1716537039247,-798.78,0.00024657,2]
[327838239,1716537039256,-601.79309725,0.00024657,2]
[327838240,1716537039266,-500.0,0.00024657,2]
[327838241,1716537039276,-872.35,0.00024657,2]
[327838242,1716537039285,-500.0,0.00024657,2]
[327838243,1716537039298,-500.0,0.00024657,2]
[327838244,1716537039308,-500.0,0.00024657,2]
[327838245,1716537039318,-876.46,0.00024657,2]
[327838246,1716537039327,-1280.12,0.00024657,2]
[327838247,1716537039337,-2048.96,0.00024657,2]
[327838248,1716537039346,-500.0,0.00024657,2]
[327838249,1716537039356,-500.0,0.00024657,2]
[327838250,1716537039366,-586.13,0.00024657,2]
[327838251,1716537039375,-500.0,0.00024657,2]
[327838252,1716537039384,-500.0,0.00024657,2]
[327838253,1716537039394,-556.89,0.00024657,2]
[327838254,1716537039404,-500.0,0.00024657,2]
[327838255,1716537039415,-933.85,0.00024657,2]
[327838256,1716537039426,-500.0,0.00024657,2]
[327838257,1716537039436,-500.0,0.00024657,2]
[327838258,1716537039445,-891.97,0.00024657,2]
[327838259,1716537039455,-700.85,0.00024657,2]
[327838260,1716537039464,-1193.57,0.00024657,2]
[327838261,1716537039475,-578.98,0.00024657,2]
[327838262,1716537039485,-500.0,0.00024657,2]
[327838263,1716537039496,-2636.78,0.00024657,2]
[327838264,1716537039506,-1268.8,0.00024657,2]
[327838265,1716537039515,-500.0,0.00024657,2]
[327838266,1716537039525,-500.0,0.00024657,2]
[327838267,1716537039535,-1967.61,0.00024657,2]
[327838268,1716537039544,-1686.32,0.00024657,2]
[327838269,1716537039553,-500.0,0.00024657,2]
[327838270,1716537039563,-514.74,0.00024657,2]
[327838271,1716537039573,-1961.71,0.00024657,2]
[327838272,1716537039583,-544.86,0.00024657,2]
[327838273,1716537039592,-500.0,0.00024657,2]
[327838274,1716537039603,-500.0,0.00024657,2]
[327838275,1716537039613,-500.0,0.00024657,2]
[327838276,1716537039622,-500.0,0.00024657,2]
[327838277,1716537039631,-2448.96,0.00024657,2]
[327838278,1716537039641,-663.86,0.00024657,2]
[327838279,1716537039651,-1582.72,0.00024657,2]
[327838280,1716537039660,-535.66,0.00024657,2]
[327838281,1716537039674,-17959.3,0.00024657,2]
[327838283,1716537039683,-500.0,0.00024657,2]
[327838284,1716537039693,-500.0,0.00024657,2]
[327838285,1716537039703,-542.35756763,0.00024657,2]
[327838286,1716537039718,-406.87133934,0.00024657,2]
[327838287,1716537039746,-559.73109303,0.00024657,2]
[327838289,1716537039755,-3211.1,0.00024657,2]
[327838290,1716537039764,-2213.95,0.00024657,2]
[327838291,1716537039774,-500.0,0.00024657,2]
[327838292,1716537039783,-202.28300314,0.00024657,2]
[327838293,1716537039792,-630.79460569,0.00024657,2]
[327838294,1716537039802,-2314.16,0.00024657,2]
[327838295,1716537039811,-500.0,0.00024657,2]
[327838296,1716537039820,-500.0,0.00024657,2]
[327838297,1716537039830,-500.0,0.00024657,2]
[327838298,1716537039839,-5429.43,0.00024657,2]
[327838299,1716537039848,-500.0,0.00024657,2]
[327838300,1716537039858,-500.0,0.00024657,2]
[327838301,1716537039867,-500.0,0.00024657,2]
[327838302,1716537039876,-678.98,0.00024657,2]
[327838303,1716537039885,-500.0,0.00024657,2]
[327838304,1716537039895,-500.0,0.00024657,2]
[327838305,1716537039905,-1427.83,0.00024657,2]
[327838306,1716537039914,-667.64,0.00024657,2]
[327838307,1716537039923,-500.0,0.00024657,2]
[327838308,1716537039932,-2910.36,0.00024657,2]
[327838309,1716537039941,-500.0,0.00024657,2]
[327838310,1716537039950,-746.49,0.00024657,2]
[327838311,1716537039960,-985.8,0.00024657,2]
[327838312,1716537039970,-500.0,0.00024657,2]
[327838313,1716537039979,-500.0,0.00024657,2]
[327838314,1716537039988,-500.0,0.00024657,2]
[327838315,1716537039998,-1117.71,0.00024657,2]
[327838316,1716537040007,-500.0,0.00024657,2]
[327838317,1716537040017,-399.75273429,0.00024657,2]
[327838318,1716537040026,-500.0,0.00024657,2]
[327838319,1716537040036,-500.0,0.00024657,2]
[327838320,1716537040045,-548.90533498,0.00024657,2]
[327838321,1716537040054,-2387.46,0.00024657,2]
[327838322,1716537040064,-809.36,0.00024657,2]
[327838323,1716537040189,-5588.24,0.00024657,2]
[327838324,1716537040200,-643.35831947,0.00024657,2]
[327838325,1716537040209,-2792.24,0.00024657,2]
[327838326,1716537040219,-1516.09,0.00024657,2]
[327838327,1716537040230,-500.0,0.00024657,2]
[327838328,1716537040240,-3940.73,0.00024657,2]
[327838329,1716537040251,-1639.36,0.00024657,2]
[327838331,1716537040261,-10745.24,0.00024657,2]
[327838332,1716537040271,-500.0,0.00024657,2]
[327838333,1716537040281,-180.81859272,0.00024657,2]
[327838334,1716537040291,-629.98082946,0.00024657,2]
[327838335,1716537040300,-500.0,0.00024657,2]
[327838336,1716537040310,-500.0,0.00024657,2]
[327838337,1716537040319,-241.30867942,0.00024657,2]
[327838338,1716537040328,-579.09,0.00024657,2]
[327838339,1716537040338,-16514.78569968,0.00024657,2]
[327838346,1716537041313,-2796.59430032,0.00024657,2]
[327838347,1716537041322,-927.43,0.00024657,2]
[327838348,1716537041332,-820.83,0.00024657,2]
[327838349,1716537041342,-500.0,0.00024657,2]
[327838350,1716537041351,-500.0,0.00024657,2]
[327838351,1716537041360,-471.15141315,0.00024657,2]
[327838372,1716537043754,-28.84858685,0.00024657,2]
[327838373,1716537043770,-500.0,0.00024657,2]
[327838374,1716537043784,-2609.61,0.00024657,2]
[327838375,1716537043796,-308.55686123,0.00024657,2]
[327838376,1716537043808,-500.0,0.00024657,2]
[327838377,1716537043820,-500.0,0.00024657,2]
[327838378,1716537043832,-2026.0,0.00024657,2]
[327838379,1716537043845,-500.0,0.00024657,2]
[327838380,1716537043858,-507.42,0.00024657,2]
[327838381,1716537043870,-500.0,0.00024657,2]
[327838382,1716537043880,-631.49,0.00024657,2]
[327838383,1716537043892,-1069.47,0.00024657,2]
[327838384,1716537043903,-500.0,0.00024657,2]
[327838385,1716537043916,-500.0,0.00024657,2]
[327838386,1716537043928,-1034.8,0.00024657,2]
[327838387,1716537043941,-500.0,0.00024657,2]
[327838388,1716537043954,-739.46,0.00024657,2]
[327838389,1716537043967,-500.0,0.00024657,2]
[327838390,1716537043982,-500.0,0.00024657,2]
[327838391,1716537043994,-500.0,0.00024657,2]
[327838392,1716537044004,-700.09,0.00024657,2]
[327838393,1716537044015,-500.0,0.00024657,2]
[327838394,1716537044026,-599.89825624,0.00024657,2]
[327838395,1716537044038,-586.14,0.00024657,2]
[327838396,1716537044051,-500.42842373,0.00024657,2]
[327838397,1716537044065,-6865.64,0.00024657,2]
[327838398,1716537044075,-8404.72,0.00024657,2]
[327838399,1716537044088,-2378.94,0.00024657,2]
[327838400,1716537044101,-853.33,0.00024657,2]
[327838401,1716537044114,-500.0,0.00024657,2]
[327838402,1716537044126,-762.79,0.00024657,2]
[327838403,1716537044138,-500.0,0.00024657,2]
[327838404,1716537044150,-500.0,0.00024657,2]
[327838405,1716537044161,-407.13355451,0.00024681,2]
[327838406,1716537044173,-496.0,0.00024684,2]
[327838407,1716537044186,-3750.92906479,0.00024831,3]
[327838408,1716537044197,-416.98761312,0.00024901,2]
[327838409,1716537044209,-156.40984326,0.00024929,2]
[327838410,1716537044220,-58914.12662326,0.0002493,2]
[327838411,1716537044234,-4710.30913065,0.0002493,2]
[327838412,1716537044247,-4224.86010977,0.0002493,2]
[327838413,1716537044258,-500.0,0.00024931,3]
[327838414,1716537044270,-500.0,0.00024931,3]
[327838415,1716537044282,-359.8,0.00024931,3]
[327838416,1716537044294,-36022.17825216,0.00024931,7]
[327838417,1716537044306,-500.0,0.00024931,3]
[327838418,1716537044319,-500.0,0.00024931,3]
[327838419,1716537044332,-500.0,0.00024931,3]
[327838420,1716537044344,-500.0,0.00024931,3]
[327838421,1716537044358,-500.0,0.00024931,3]
[327838422,1716537044371,-500.0,0.00024931,3]
[327838423,1716537044383,-500.0,0.00024931,3]
[327838424,1716537044395,-500.0,0.00024931,3]
[327838425,1716537044407,-500.0,0.00024931,3]
[327838426,1716537044419,-500.0,0.00024931,3]
[327838427,1716537044431,-619.58915072,0.00024931,3]
[327838428,1716537044444,-1000.0,0.00024931,2]
[327838429,1716537044457,-532.05,0.00024931,3]
[327838430,1716537044469,-500.0,0.00024931,3]
[327838431,1716537044483,-500.0,0.00024931,3]
[327838432,1716537044496,-970.32,0.00024931,3]
[327838433,1716537044509,-642.3,0.00024931,3]
[327838434,1716537044522,-500.0,0.00024931,3]
[327838435,1716537044536,-500.0,0.00024931,3]
[327838436,1716537044549,-500.0,0.00024931,3]
[327838437,1716537044563,-1949.67,0.00024931,3]
[327838438,1716537044576,-2336.37,0.00024931,3]
[327838439,1716537044588,-502.36,0.00024931,3]
[327838440,1716537044601,-500.0,0.00024931,3]
[327838441,1716537044613,-2838.29,0.00024931,3]
[327838442,1716537044625,-500.0,0.00024931,3]
[327838443,1716537044638,-3196.59,0.00024931,3]
[327838444,1716537044650,-500.0,0.00024931,3]
[327838445,1716537044662,-500.0,0.00024931,3]
[327838446,1716537044679,-1209.28,0.00024931,3]
[327838447,1716537044692,-500.0,0.00024931,3]
[327838448,1716537044704,-500.0,0.00024931,3]
[327838449,1716537044716,-500.0,0.00024931,3]
[327838450,1716537044729,-500.0,0.00024931,3]
[327838451,1716537044741,-500.0,0.00024931,3]
[327838452,1716537044754,-500.0,0.00024931,3]
[327838453,1716537044767,-1361.77,0.00024931,3]
[327838454,1716537044779,-979.13,0.00024931,3]
[327838455,1716537044792,-573.21,0.00024931,3]
[327838456,1716537044804,-560.58791804,0.00024931,3]
[327838457,1716537044816,-1847.85,0.00024931,3]
[327838458,1716537044828,-500.0,0.00024931,3]
[327838459,1716537044840,-998.69,0.00024931,3]
[327838460,1716537044852,-500.0,0.00024931,3]
[327838461,1716537044864,-500.0,0.00024931,3]
[327838462,1716537044876,-761.11,0.00024931,3]
[327838463,1716537044889,-500.0,0.00024931,3]
[327838464,1716537044902,-500.0,0.00024931,3]
[327838465,1716537044915,-500.0,0.00024931,3]
[327838466,1716537044927,-507.27,0.00024931,3]
[327838467,1716537044939,-946.65,0.00024931,3]
[327838468,1716537044950,-1240.39,0.00024931,3]
[327838469,1716537044960,-1335.8,0.00024931,3]
[327838470,1716537044970,-2172.85,0.00024931,3]
[327838471,1716537044982,-500.0,0.00024931,3]
[327838472,1716537044992,-500.0,0.00024931,3]
[327838473,1716537045002,-500.0,0.00024931,3]
[327838474,1716537045012,-2776.03,0.00024931,3]
[327838475,1716537045022,-395.24388183,0.00024931,3]
[327838476,1716537045032,-500.0,0.00024931,3]
[327838477,1716537045043,-500.0,0.00024931,3]
[327838478,1716537045052,-500.0,0.00024931,3]
[327838479,1716537045062,-1103.25,0.00024931,3]
[327838480,1716537045072,-1775.81,0.00024931,3]
[327838481,1716537045300,-638.51,0.00024931,3]
[327838482,1716537045322,-500.0,0.00024931,3]
[327838483,1716537045337,-600.07,0.00024931,3]
[327838484,1716537045348,-500.0,0.00024931,3]
[327838485,1716537045359,-798.78,0.00024931,3]
[327838486,1716537045369,-500.0,0.00024931,3]
[327838487,1716537045379,-872.35,0.00024931,3]
[327838488,1716537045388,-500.0,0.00024931,3]
[327838489,1716537045398,-500.0,0.00024931,3]
[327838490,1716537045407,-500.0,0.00024931,3]
[327838491,1716537045417,-876.46,0.00024931,3]
[327838492,1716537045426,-1280.12,0.00024931,3]
[327838493,1716537045435,-2048.96,0.00024931,3]
[327838494,1716537045445,-500.0,0.00024931,3]
[327838495,1716537045454,-500.0,0.00024931,3]
[327838496,1716537045463,-586.13,0.00024931,3]
[327838497,1716537045474,-500.0,0.00024931,3]
[327838498,1716537045483,-424.51886074,0.00024931,3]
[327838499,1716537045492,-556.89,0.00024931,3]
[327838500,1716537045502,-500.0,0.00024931,3]
[327838501,1716537045511,-933.85,0.00024931,3]
[327838502,1716537045520,-500.0,0.00024931,3]
[327838503,1716537045530,-500.0,0.00024931,3]
[327838504,1716537045540,-891.97,0.00024931,3]
[327838505,1716537045549,-700.85,0.00024931,3]
[327838506,1716537045558,-1193.57,0.00024931,3]
[327838507,1716537045567,-578.98,0.00024931,3]
[327838508,1716537045576,-500.0,0.00024931,3]
[327838509,1716537045585,-2636.78,0.00024931,3]
[327838510,1716537045595,-1268.8,0.00024931,3]
[327838511,1716537045605,-500.0,0.00024931,3]
[327838512,1716537045614,-500.0,0.00024931,3]
[327838513,1716537045622,-1967.61,0.00024931,3]
[327838514,1716537045632,-1686.32,0.00024931,3]
[327838515,1716537045641,-500.0,0.00024931,3]
[327838516,1716537045650,-514.74,0.00024931,3]
[327838517,1716537045659,-1961.71,0.00024931,3]
[327838518,1716537045671,-544.86,0.00024931,3]
[327838519,1716537045681,-500.0,0.00024931,3]
[327838520,1716537045690,-500.0,0.00024931,3]
[327838521,1716537045699,-500.0,0.00024931,3]
[327838522,1716537045709,-500.0,0.00024931,3]
[327838523,1716537045718,-2448.96,0.00024931,3]
[327838524,1716537045728,-663.86,0.00024931,3]
[327838525,1716537045737,-1582.72,0.00024931,3]
[327838526,1716537045749,-535.66,0.00024931,3]
[327838527,1716537045759,-17959.3,0.00024931,3]
[327838528,1716537045768,-500.0,0.00024931,3]
[327838529,1716537045778,-500.0,0.00024931,3]
[327838530,1716537045787,-3211.1,0.00024931,3]
[327838531,1716537045796,-1508.96,0.00024931,3]
[327838532,1716537045805,-2213.95,0.00024931,3]
[327838533,1716537045815,-500.0,0.00024931,3]
[327838534,1716537045824,-500.0,0.00024931,3]
[327838535,1716537045834,-2314.16,0.00024931,3]
[327838536,1716537045843,-500.0,0.00024931,3]
[327838537,1716537045852,-500.0,0.00024931,3]
[327838538,1716537045862,-5429.43,0.00024931,3]
[327838539,1716537045871,-500.0,0.00024931,3]
[327838540,1716537045880,-500.0,0.00024931,3]
[327838541,1716537045890,-500.0,0.00024931,3]
[327838542,1716537045899,-216.16327108,0.00024931,3]
[327838543,1716537045908,-678.98,0.00024931,3]
[327838545,1716537045917,-300.84965998,0.00024931,3]
[327838546,1716537045926,-1427.83,0.00024931,3]
[327838547,1716537045936,-667.64,0.00024931,3]
[327838548,1716537045946,-500.0,0.00024931,3]
[327838549,1716537045955,-2910.36,0.00024931,3]
[327838550,1716537045964,-500.0,0.00024931,3]
[327838551,1716537045974,-746.49,0.00024931,3]
[327838552,1716537045983,-985.8,0.00024931,3]
[327838553,1716537045993,-500.0,0.00024931,3]
[327838554,1716537046002,-500.0,0.00024931,3]
[327838555,1716537046011,-500.0,0.00024931,3]
[327838556,1716537046020,-1117.71,0.00024931,3]
[327838557,1716537046029,-500.0,0.00024931,3]
[327838558,1716537046038,-500.0,0.00024931,3]
[327838559,1716537046048,-500.0,0.00024931,3]
[327838560,1716537046057,-2387.46,0.00024931,3]
[327838561,1716537046066,-809.36,0.00024931,3]
[327838562,1716537046075,-5588.24,0.00024931,3]
[327838563,1716537046084,-2792.24,0.00024931,3]
[327838564,1716537046093,-1516.09,0.00024931,3]
[327838565,1716537046103,-500.0,0.00024931,3]
[327838566,1716537046112,-3940.73,0.00024931,3]
[327838567,1716537046121,-1639.36,0.00024931,3]
[327838568,1716537046130,-10745.24,0.00024931,3]
[327838569,1716537046139,-500.0,0.00024931,3]
[327838570,1716537046149,-500.0,0.00024931,3]
[327838571,1716537046158,-500.0,0.00024931,2]
[327838572,1716537046167,-19311.38,0.00024931,3]
[327838573,1716537046177,-579.09,0.00024931,3]
[327838574,1716537046186,-820.83,0.00024931,3]
[327838575,1716537046196,-927.43,0.00024931,3]
[327838576,1716537046206,-500.0,0.00024931,3]
[327838577,1716537046215,-500.0,0.00024931,3]
[327838578,1716537046226,-500.0,0.00024931,3]
[327838579,1716537046236,-2609.61,0.00024931,3]
[327838580,1716537046245,-500.0,0.00024931,3]
[327838581,1716537046255,-500.0,0.00024931,3]
[327838582,1716537046265,-2026.0,0.00024931,3]
[327838583,1716537046275,-500.0,0.00024931,3]
[327838584,1716537046284,-507.42,0.00024931,3]
[327838585,1716537046294,-500.0,0.00024931,3]
[327838586,1716537046303,-631.49,0.00024931,3]
[327838587,1716537046313,-1069.47,0.00024931,3]
[327838588,1716537046323,-500.0,0.00024931,3]
[327838589,1716537046332,-500.0,0.00024931,3]
[327838590,1716537046342,-1034.8,0.00024931,3]
[327838591,1716537046351,-500.0,0.00024931,3]
[327838592,1716537046361,-739.46,0.00024931,3]
[327838593,1716537046370,-500.0,0.00024931,3]
[327838594,1716537046380,-500.0,0.00024931,3]
[327838595,1716537046389,-500.0,0.00024931,3]
[327838596,1716537046398,-500.0,0.00024931,3]
[327838597,1716537046408,-700.09,0.00024931,3]
[327838598,1716537046417,-586.14,0.00024931,3]
[327838599,1716537046427,-6865.64,0.00024931,3]
[327838600,1716537046436,-2378.94,0.00024931,3]
[327838601,1716537046446,-8404.72,0.00024931,3]
[327838602,1716537046455,-853.33,0.00024931,3]
[327838603,1716537046464,-500.0,0.00024931,3]
[327838604,1716537046473,-762.79,0.00024931,3]
[327838605,1716537046486,-500.0,0.00024931,3]
[327838606,1716537046495,-500.0,0.00024931,3]
[327838607,1716537046504,-7004.72172493,0.00025,11]
[327838608,1716537046514,-400.96297874,0.00025,2]
[327838609,1716537046523,-160.0,0.00025,2]
[327838610,1716537046532,-583.41254487,0.00025,2]
[327838611,1716537046542,-1000.0,0.00025,8]
[327838612,1716537046551,-3376.14194951,0.00025,2]
[327838613,1716537046560,-150.397,0.00025,2]
[327838614,1716537046569,-105415.21474099,0.00025,2]
[327838615,1716537046584,-761.68758774,0.00025,2]
[327838616,1716537046596,-2215.68405525,0.00025,2]
[327838624,1716537088431,155.39644152,0.00020913,2]
[327838631,1716538025111,-1196.62384614,0.00020912,2]
[327838632,1716538025133,-684.66208646,0.00020912,2]
[327838633,1716538025157,-157.09016641,0.00020912,2]
[327838634,1716538025177,-1354.79345061,0.00020912,2]
[327838635,1716538025197,-155.04031048,0.00020912,2]
[327838636,1716538025216,-395.90369838,0.00020912,2]
[327838637,1716538030857,175.72514253,9.999e-05,2]
[327838638,1716538145106,-1987.98233005,0.00020912,2]
[327838639,1716538145128,-1881.85996821,0.00020912,2]
[327838640,1716538145149,-176.1920796,0.00020912,2]
[327838641,1716538145170,-942.90397425,0.00020912,2]
[327838642,1716538145189,-530.65151324,0.00020913,2]
[327838643,1716538145208,-641.123,0.00021,2]
[327838644,1716538171754,176.49966876,0.00020913,2]
[327838645,1716538211991,506.81565989,0.00021,2]
[327838646,1716538219941,2782.16,0.00027,30]
[327838647,1716538231827,233.0423654,0.00020913,2]